Cogmind - Beta 10.2 @@@ ROGUE MODE // 2021.06.16 @ 13:24:09 Player: Demise Result: Destroyed by D-53 Grenadier with Mini Grenade Launcher Performance ------------- Evolutions (0) 0 Regions Visited (2) 400 Robots Destroyed (33) 165 Value Destroyed (500) 500 Prototype IDs (0) 0 Alien Tech Used (0) 0 Bonus (0) 0 TOTAL SCORE: 1065 Bonus ------- None Cogmind --------- Core Integrity 0/250 Matter 226/300 Energy 100/100 System Corruption 0% Temperature Cool (0) Movement Core (800) Ox15 Location -10/Mines Parts ------- > --- POWER (1) -------- (None) > --- PROPULSION (2) --- (None) > --- UTILITY (2) ------ Large Storage Unit High-capacity Storage Unit > --- WEAPON (2) ------- (None) > --- INVENTORY (18) --- Ion Engine Medium Storage Unit Large Storage Unit Large Storage Unit High-capacity Matter Pod (200) Signal Interpreter Power Shielding Power Shielding Light Armor Plating Light Armor Plating Light Assault Rifle Light Assault Rifle Light Assault Rifle Grenade Launcher Datajack Mining Laser Peak State ------------ > --- POWER ------------ Light Nuclear Core > --- PROPULSION ------- Light Treads Light Treads > --- UTILITY ---------- Large Storage Unit High-capacity Storage Unit > --- WEAPON ----------- Assault Rifle Light Assault Rifle > --- INVENTORY -------- Ion Engine Ion Engine Light Treads Improved Heat Sink Medium Storage Unit Large Storage Unit Large Storage Unit High-capacity Matter Pod Signal Interpreter Power Shielding Power Shielding Light Armor Plating Light Armor Plating Small Laser Light Assault Rifle Light Assault Rifle Grenade Launcher Mining Laser [Rating: 11] Favorites ----------- Power Light Nuclear Core Engine Ion Engine Power Core Light Nuclear Core Propulsion Light Treads Treads Light Treads Utility Large Storage Unit Storage Large Storage Unit Weapon Assault Rifle Energy Gun Small Laser Ballistic Gun Assault Rifle Launcher Grenade Launcher Special Weapon Mining Laser Build | -11 -10 -10 ------- Run | Scr Mat Min Slots Evolved . | . . . Power . | . . . Propulsion . | . . . Utility . | . . . Weapon . | . . . Parts Attached 24 | 6 14 4 Power 4 | 1 2 1 Engine 3 | 1 1 1 Core 1 | . 1 . Reactor . | . . . Propulsion 4 | 2 1 1 Treads 4 | 2 1 1 Leg . | . . . Wheel . | . . . Hover . | . . . Flight . | . . . Utility 4 | 1 3 . Device . | . . . Storage 4 | 1 3 . Processor . | . . . Hackware . | . . . Protection . | . . . Artifact . | . . . Weapon 12 | 2 8 2 Energy Gun 1 | . . 1 Energy Cannon . | . . . Ballistic Gun 6 | 2 4 . Ballistic Cannon . | . . . Launcher 2 | . 1 1 Special Weapon 3 | . 3 . Impact Weapon . | . . . Slashing Weapon . | . . . Piercing Weapon . | . . . Special Melee Weapon . | . . . Unidentified Prototypes . | . . . Parts Lost 8 | . 1 7 Power 2 | . . 2 Propulsion 3 | . . 3 Utility . | . . . Weapon 3 | . 1 2 Highest Loss Streak 6 | . 1 6 Average Slot Usage (%) 98 | . 98 95 Engine 1 | . 1 . Core 12 | . 12 11 Treads 27 | . 28 27 Storage 27 | . 27 28 Ballistic Gun 25 | . 25 24 Special Weapon 1 | . 1 . Naked Turns . | . . . Heaviest Build 58 | 10 56 58 Greatest Support 40 | 40 40 40 Greatest Overweight (x) 17 | 1 1 17 Average Overweight (x) . | . . 1 Largest Inventory Capacity 18 | 6 18 18 Average Capacity 16 | 4 17 18 Most Carried 18 | 4 18 18 Average Carried 11 | 3 11 17 Final Capacity 18 | 6 18 18 Final Carried 18 | 4 18 16 Class Distribution -------------------- 100% | Mutant Dominant Class ---------------- Mutant | -10/Materials Mutant | -10/Mines Resources | -11 -10 -10 ----------- Run | Scr Mat Min Matter Collected 935 | 276 643 16 Remotely . | . . . Salvage Created 1187 | 116 952 119 Parts 74 | 6 64 4 Haulers Intercepted 1 | . 1 . Recyclers Shooed 1 | . 1 . Parts Field Recycled . | . . . Retrieved Matter . | . . . Parts Self-Destructed . | . . . Prevented . | . . . Kills | -11 -10 -10 ------- Run | Scr Mat Min Combat Hostiles Destroyed 29 | . 13 16 Guns 14 | . 11 3 AOE 15 | . 2 13 Classes Destroyed 9 | 2 6 1 Worker 2 | . 2 . Builder 5 | . 5 . Tunneler 2 | 1 1 . Hauler 1 | . 1 . Recycler 5 | 1 4 . Watcher 3 | . 3 . Swarmer 6 | . 6 . Grunt 9 | . 7 2 Assembled 14 | . . 14 Best Kill Streak 14 | 2 5 14 Combat Bots Only 14 | . 3 14 Max Kills in Single Turn 4 | 1 2 4 Gunslinging . | . . . Exploded 4 | . 2 4 Melee . | . . . Uniques/NPCs Destroyed . | . . . Combat | -11 -10 -10 -------- Run | Scr Mat Min Damage Taken 1454 | . 542 912 Core 253 | . 52 201 Absorbed by Shields . | . . . Core Remaining (%) 100 | 100 . . Volleys Fired 94 | 4 79 11 Largest 2 | 2 2 2 Hottest 100 | 40 100 60 Shots Fired 176 | 8 153 15 Gun 164 | 8 148 8 Cannon . | . . . Launcher 8 | . 1 7 Special 4 | . 4 . Kinetic 163 | 8 148 7 Thermal 5 | . 4 1 Explosive 8 | . 1 7 Electromagnetic . | . . . Robot Hit Streak 16 | 4 16 5 Robot Miss Streak 4 | 1 4 1 Penetration Max . | . . . Secondary Targets 1 | . 1 . Max Gunslinging Chain 1 | . 1 . Shots Hit Robots 113 | 5 98 10 Core Hits 85 | 3 48 34 Critical Hits 2 | . 2 . Critical Kills . | . . . Critical Parts Destroyed 2 | . 2 . Melee Attacks . | . . . Impact . | . . . Slashing . | . . . Piercing . | . . . Sneak Attacks . | . . . Combat Hostiles . | . . . Follow-up Attacks . | . . . Damage Inflicted 2145 | 59 1206 880 Guns 1165 | 59 1048 58 Cannons . | . . . Explosions 980 | . 158 822 Melee . | . . . Ramming . | . . . Kinetic 1165 | 59 1048 58 Thermal . | . . . Explosive 980 | . 158 822 Electromagnetic . | . . . Impact . | . . . Slashing . | . . . Piercing . | . . . Highest Corruption . | . . . Average Corruption . | . . . Corruption Purged . | . . . Overload Shots . | . . . Overflow Damage 11 | . . 11 Projectiles . | . . . Explosions 11 | . . 11 Melee . | . . . Knockbacks . | . . . Impact . | . . . Kinetic . | . . . Secondary . | . . . Self-Inflicted Damage 31 | . 13 18 Shots 3 | . 1 2 Rammed . | . . . Targets Rammed . | . . . Kicked . | . . . Crushed . | . . . Highest Temperature 84 | . 84 17 Average Temperature 8 | . 8 6 Received Heat Transfer 170 | . 150 20 Siege Activations . | . . . Robots Corrupted . | . . . Combat Hostiles . | . . . Parts Fried . | . . . Impact Corruptions . | . . . Robots Melted . | . . . Combat Hostiles . | . . . Parts Melted . | . . . Heat Transferred . | . . . Parts Sabotaged . | . . . Parts Stolen . | . . . Parts Stripped . | . . . Power Chain Reactions . | . . . Missiles Intercepted . | . . . Alert | -11 -10 -10 ------- Run | Scr Mat Min Peak Influence 224 | 10 224 84 Initial 34 | . 6 34 Average 88 | 4 94 66 Maximum Alert Level 1 | . 1 . Low Security (%) 95 | 100 94 100 Level 1 4 | . 5 . Level 2 . | . . . Level 3 . | . . . Level 4 . | . . . Level 5 . | . . . High Security . | . . . Max Security . | . . . Squads Dispatched 4 | . 3 1 Investigation 4 | . 3 1 Extermination . | . . . Reinforcement . | . . . Assault . | . . . Garrison . | . . . Intercept . | . . . Construction Impeded . | . . . Haulers Reinforced . | . . . Stealth | -11 -10 -10 --------- Run | Scr Mat Min Distress Signals 2 | . 2 . Communications Jammed . | . . . Distress Signals . | . . . Times Spotted 41 | . 22 19 Peak Tracking Total 15 | . 4 15 Tactical Retreats 4 | . 3 1 Traps | -11 -10 -10 ------- Run | Scr Mat Min Traps Triggered 3 | . 3 . Indirectly . | . . . Trap Hack Attempts . | . . . Triggered . | . . . Disarmed . | . . . Reprogrammed . | . . . Reused . | . . . Traps Extracted . | . . . Installed . | . . . Triggered . | . . . Machines | -11 -10 -10 ---------- Run | Scr Mat Min Machines Disabled 1 | . 1 . Max in Single Turn 1 | . 1 . Machines Sabotaged . | . . . Garrisons Compromised . | . . . Overloaded Fab Kills . | . . . Fab Network Shutdowns . | . . . Hacking | -11 -10 -10 --------- Run | Scr Mat Min Machines Accessed 11 | . 10 1 Terminals 8 | . 7 1 Fabricators . | . . . Repair Stations 1 | . 1 . Recycling Units 2 | . 2 . Scanalyzers . | . . . Garrison Access . | . . . Total Hacks 43 | . 41 2 Successful 25 | . 24 1 Failed 17 | . 16 1 Catastrophic 1 | . . 1 Database Lockouts 1 | . 1 . Manual 35 | . 33 2 Terminals 31 | . 29 2 Fabricators . | . . . Repair Stations 4 | . 4 . Recycling Units 8 | . 8 . Scanalyzers . | . . . Garrison Access . | . . . Terminal Hacks 8 | . 7 1 Part Schematic 2 | . 1 1 Robot Analysis 3 | . 3 . Level Access Points 1 | . 1 . Branch Access Points 1 | . 1 . Terminal Index 1 | . 1 . Fabricator Hacks . | . . . Repair Station Hacks 4 | . 4 . Scan Component 2 | . 2 . Repair 2 | . 2 . Recycling Unit Hacks 1 | . 1 . Retrieve Components 1 | . 1 . Scanalyzer . | . . . Garrison Access Hacks . | . . . Unauthorized Hacks 12 | . 12 . Terminals 8 | . 8 . Assimilate 1 | . 1 . Botnet 6 | . 6 . Operators 1 | . 1 . Fabricators . | . . . Repair Stations . | . . . Recycling Units 4 | . 4 . Monitor 1 | . 1 . Reject 1 | . 1 . Recyclers 1 | . 1 . Mask 1 | . 1 . Scanalyzers . | . . . Garrison Access . | . . . Data Cores Recovered . | . . . Used . | . . . Hacking Detections 11 | . 10 1 Full Trace Events 8 | . 7 1 Feedback Events . | . . . Feedback Blocked . | . . . Robot Schematics Acquired . | . . . Robots Built . | . . . Matter . | . . . Time . | . . . Total Robot Build Rating . | . . . Part Schematics Acquired 2 | . 1 1 Parts Built . | . . . Matter . | . . . Time . | . . . Total Part Build Rating . | . . . Parts Repaired 2 | . 2 . Time 52 | . 52 . Parts Recycled . | . . . Recycled Matter . | . . . Retrieved Matter . | . . . Retrieved Components 10 | . 10 . Parts Scanalyzed . | . . . Part Schematics Acquired . | . . . Parts Damaged . | . . . Bothacking | -11 -10 -10 ------------ Run | Scr Mat Min Used RIF Installer . | . . . Robots Hacked . | . . . Non-combat . | . . . Combat . | . . . Robot Hacks Applied . | . . . Relay Couplers Released . | . . . Robots Rewired . | . . . Allies Hacked . | . . . Hacks Repelled . | . . . Allies | -11 -10 -10 -------- Run | Scr Mat Min Total Allies 1 | . 1 . Largest Group 1 | . 1 1 Highest-Rated Group 10 | . 10 10 Highest-Rated Ally 10 | . 10 10 Total Orders . | . . . Ally Attacks . | . . . Total Damage . | . . . Kills . | . . . Allies Corrupted . | . . . Allies Melted . | . . . Intel | -11 -10 -10 ------- Run | Scr Mat Min Robot Analysis Total 3 | . 3 . Derelict Logs Recovered 1 | . . 1 Drone Launches . | . . . Drone Recoveries . | . . . Exploration | -11 -10 -10 ------------- Run | Scr Mat Min Turns Passed 2144 | 48 1818 278 Spaces Moved 1007 | 31 840 136 Core 24 | 23 . 1 Treads 983 | 8 840 135 Legs . | . . . Wheels . | . . . Hover . | . . . Flight . | . . . Fastest Speed 50 | 50 160 180 Average Speed 169 | 80 170 185 Slowest Speed 900 | 160 180 900 Overloaded Moves . | . . . Propulsion Burnouts . | . . . Robots Hopped . | . . . Cave-ins Triggered . | . . . Exploration Rate (%) 45 | 4 94 39 Regions Visited 2 Branch Regions 1 Pre-discovered Areas . | . . . Known Exits Taken 1 | . 1 . Unknown Exits Taken 1 | 1 . . Scrap Searched 1 | . . 1 Spaces Dug 2 | . 2 . Terrain Destroyed 67 | . 9 58 Melee . | . . . Projectile 3 | . 3 . AOE 64 | . 6 58 Terrain Rammed . | . . . Walls Destroyed . | . . . Machines Disabled . | . . . Actions | -11 -10 -10 --------- Run | Scr Mat Min Total 1276 | 45 1078 153 Wait 122 | . 122 . Move 1005 | 30 839 136 Hop . | . . . Pick Up 23 | 5 17 1 Fast Attach 8 | 5 3 . Attach 4 | 1 1 2 Detach 1 | . 1 . Swap 12 | . 10 2 Drop 7 | . 6 1 Fire 94 | 4 79 11 Melee . | . . . Ram . | . . . Kick . | . . . Crush . | . . . Escape Stasis . | . . . Rewire . | . . . Trap . | . . . Miscellaneous . | . . . Route ------- -11/Scrapyard -10/Materials (discovered 5 exits: *Mat x3 / *Min x2) -10/Mines History --------- Turn | Location | Event 9 | -11/Scrapyard | Discovered new exit (range 16) 49 | -11/Scrapyard | Entered Materials 287 | -10/Materials | Discovered new exit (range 13) 301 | -10/Materials | Build established: Mutant 393 | -10/Materials | Discovered new exit (range 8) 509 | -10/Materials | Discovered new exit (range 6) 609 | -10/Materials | Repaired Assault Rifle 636 | -10/Materials | Repaired Lgt. Assault Rifle 965 | -10/Materials | Discovered new exit (range 13) 1044 | -10/Materials | Discovered new exit (range 3) 1345 | -10/Materials | Identified exit to Mines 1345 | -10/Materials | Identified exit to Materials 1345 | -10/Materials | Central database locked down 1867 | -10/Materials | Entered Mines 1867 | -10/Mines | Accompanied by 1 ally 1930 | -10/Mines | Learned 2 Materials zone layouts 2080 | -10/Mines | Assembled infested the area 2085 | -10/Mines | Assisted by a Guerilla fighting off Assembled 2124 | -10/Mines | Destroyed 14 combat bots 2132 | -10/Mines | Core integrity fell below 50% 2144 | -10/Mines | Core integrity fell below 20% 2145 | -10/Mines | Destroyed by D-53 Grenadier with Mini Grenade Launcher Last Messages --------------- 02116_ The unstable cave ceiling collapses. 02117_ K-01 Serf collects debris. 02126_ The unstable cave ceiling collapses. 02128_ Technician 1a destroyed. 02128_ K-01 Serf collects debris. 02133_ The unstable cave ceiling collapses. 02133_ Sml. Laser destroyed. 02134_ The unstable cave ceiling collapses. 02135_ Assault Rifle destroyed. 02137_ The unstable cave ceiling collapses. 02137_ U-05 Engineer lays Concrete. 02139_ Lgt. Treads destroyed. 02140_ U-05 Engineer lays Concrete. 02140_ K-01 Serf collects debris. 02141_ U-05 Engineer lays Concrete. 02141_ Lgt. Treads destroyed. 02142_ U-05 Engineer lays Concrete. 02143_ The unstable cave ceiling collapses. 02143_ U-05 Engineer lays Concrete. 02145_ Ion Engine destroyed. Map ----- +----------------------------------------------------+ | | | | | | | | | | | | | | | | | | | | | | | | | ??????????????????????????????????????????? | | ???????????##?????????????????????????????? | | ??????????## ######?####???#######????????? | | ????????### ## ##### ##???????? | | ??????### ## # """ ####????? | | ?????## """ ###??? | | ?????# """ ###? | | ??????# < k ## | | ??????## # # # | | ?????????# ## ## | | ?????????## # ### #### | | ??????????# ####?# #??##### | | ??????????## ###??# "?????## | | ??????????# @ #????# ##?????# | | ??????????# d ##???# #??????# | | ???????# % d #??# #??????# | | ???????# ## # ##?# ##??????# | | ??????? ??## ##??# ##???????? | | ????? ????## ??? ##????????? | | ???? ???????### # u ? ###?????????? | | ??????????????##########?# #????????????? | | ??????????????????????????? #?????????????? | | ??????????????????????????????????????????? | | ??????????????????????????????????????????? | | ??????????????????????????????????????????? | | ??????????????????????????????????????????? | | ??????????????????????????????????????????? | | ??????????????????????????????????????????? | | ??????????????????????????????????????????? | | ??????????????????????????????????????????? | | ??????????????????????????????????????????? | | ??????????????????????????????????????????? | | ??????????????????????????????????????????? | | ??????????????????????????????????????????? | | ??????????????????????????????????????????? | | ??????????????????????????????????????????? | | ??????????????????????????????????????????? | | ??????????????????????????????????????????? | +----------------------------------------------------+ Best States ------------- Heat Dissipation 25 Energy Generation 14 Energy Capacity 250 Matter Stores 300 Matter Capacity 300 Sight Range 16 Terrain Scan Density 10 Evasion (%) 40 Recoil Reduction 2 Item Schematics ----------------- Hcp. Storage Unit | -10/Materials | Hacked Med. Storage Unit | -10/Mines | Hacked Robot Schematics ------------------ None Fabricated ------------ Nothing Alien Tech Used ----------------- None Achievements -------------- None Challenges ------------ None Game ------ Seed CombatSiegeTorch Manual? 0 Play Time 00:14:43 Cumulative 309.5 hours Start 2021.06.16 @ 13:10:57 End 2021.06.16 @ 13:24:09 Sessions 1 Manual Loads 0 Difficulty Rogue Special Mode None Game No. 270 Rogue 270 Adventurer 0 Explorer 0 Win Type - Total 1 Types 0/0/0/1/0/0/0/0/0 Lore% 67 Gallery% 77 Achievement% 58 Wizard Run 0 Options --------- ASCII 0 Keyboard 1 Movement Numpad Keybinds 0 Fullscreen 1 Font 12/Terminus Map View 83x54 Tactical HUD 1 Map Filters NONE Filters NONE Steam 1 RUN: c2232e18-9285-4fa1-9d93-e6a8c65dac82